fUSD/lending_fUSD_20250112
["ID","MTS","AMOUNT","RATE_DAILY","PERIOD"]
[348688991,1736718632753,-500.0,9.999e-05,2]
[348688993,1736718632761,-500.0,9.999e-05,2]
[348688995,1736718632771,-500.0,9.999e-05,2]
[348688997,1736718632780,-500.0,9.999e-05,2]
[348688998,1736718632789,-500.0,9.999e-05,2]
[348689000,1736718632798,-158.916183,9.999e-05,2]
[348689002,1736718632809,-500.0,9.999e-05,2]
[348689004,1736718632820,-500.0,9.999e-05,2]
[348689006,1736718632830,-500.0,9.999e-05,2]
[348689008,1736718632839,-500.0,9.999e-05,2]
[348689009,1736718632847,-500.0,9.999e-05,2]
[348689011,1736718632857,-500.0,9.999e-05,2]
[348689013,1736718632866,-500.0,9.999e-05,2]
[348689015,1736718632875,-500.0,9.999e-05,2]
[348689017,1736718632883,-500.0,9.999e-05,2]
[348689019,1736718632892,-500.0,9.999e-05,2]
[348689021,1736718632901,-500.0,9.999e-05,2]
[348689022,1736718632910,-500.0,9.999e-05,2]
[348689024,1736718632919,-500.0,9.999e-05,2]
[348689026,1736718632928,-478.59621757,9.999e-05,2]
[348689028,1736718632937,-500.0,9.999e-05,2]
[348689030,1736718632946,-500.0,9.999e-05,2]
[348689032,1736718632955,-512.18,9.999e-05,2]
[348689034,1736718632964,-500.0,9.999e-05,2]
[348689035,1736718632973,-500.0,9.999e-05,2]
[348689037,1736718632983,-500.0,9.999e-05,2]
[348689039,1736718632992,-500.0,9.999e-05,2]
[348689041,1736718633001,-502.14,9.999e-05,2]
[348689043,1736718633010,-500.0,9.999e-05,2]
[348689045,1736718633019,-508.12,9.999e-05,2]
[348689047,1736718633028,-500.0,9.999e-05,2]
[348689048,1736718633037,-500.0,9.999e-05,2]
[348689050,1736718633046,-500.0,9.999e-05,2]
[348689052,1736718633055,-500.0,9.999e-05,2]
[348689054,1736718633065,-500.0,9.999e-05,2]
[348689056,1736718633074,-554.36,9.999e-05,2]
[348689058,1736718633083,-500.0,9.999e-05,2]
[348689060,1736718633092,-500.0,9.999e-05,2]
[348689061,1736718633102,-569.48,9.999e-05,2]
[348689063,1736718633111,-500.0,9.999e-05,2]
[348689065,1736718633124,-500.0,9.999e-05,2]
[348689067,1736718633134,-500.0,9.999e-05,2]
[348689069,1736718633145,-500.0,9.999e-05,2]
[348689071,1736718633155,-500.0,9.999e-05,2]
[348689072,1736718633165,-500.0,9.999e-05,2]
[348689073,1736718633174,-500.0,9.999e-05,2]
[348689074,1736718633183,-500.0,9.999e-05,2]
[348689075,1736718633192,-500.0,9.999e-05,2]
[348689076,1736718633201,-500.0,9.999e-05,2]
[348689077,1736718633212,-500.0,9.999e-05,2]
[348689078,1736718633221,-520.25,9.999e-05,2]
[348689079,1736718633231,-500.0,9.999e-05,2]
[348689080,1736718633240,-500.0,9.999e-05,2]
[348689081,1736718633250,-400.47081951,9.999e-05,2]
[348689082,1736718633259,-500.0,9.999e-05,2]
[348689083,1736718633268,-555.37,9.999e-05,2]
[348689084,1736718633278,-500.0,9.999e-05,2]
[348689085,1736718633288,-500.0,9.999e-05,2]
[348689086,1736718633297,-513.36,9.999e-05,2]
[348689088,1736718633307,-500.0,9.999e-05,2]
[348689089,1736718633316,-583.47,9.999e-05,2]
[348689092,1736718633326,-500.0,9.999e-05,2]
[348689093,1736718633335,-500.0,9.999e-05,2]
[348689095,1736718633345,-500.0,9.999e-05,2]
[348689097,1736718633354,-500.0,9.999e-05,2]
[348689099,1736718633363,-500.0,9.999e-05,2]
[348689101,1736718633372,-500.0,9.999e-05,2]
[348689103,1736718633381,-500.0,9.999e-05,2]
[348689105,1736718633390,-500.0,9.999e-05,2]
[348689107,1736718633399,-500.0,9.999e-05,2]
[348689109,1736718633408,-881.9,9.999e-05,2]
[348689111,1736718633417,-500.0,9.999e-05,2]
[348689113,1736718633427,-500.0,9.999e-05,2]
[348689115,1736718633435,-500.0,9.999e-05,2]
[348689117,1736718633444,-500.0,9.999e-05,2]
[348689119,1736718633455,-500.0,9.999e-05,2]
[348689121,1736718633466,-515.33,9.999e-05,2]
[348689123,1736718633475,-500.0,9.999e-05,2]
[348689125,1736718633484,-500.0,9.999e-05,2]
[348689127,1736718633494,-518.34,9.999e-05,2]
[348689129,1736718633503,-500.0,9.999e-05,2]
[348689131,1736718633512,-502.23,9.999e-05,2]
[348689133,1736718633521,-500.0,9.999e-05,2]
[348689135,1736718633530,-1316.21,9.999e-05,2]
[348689137,1736718633539,-500.0,9.999e-05,2]
[348689139,1736718633549,-500.0,9.999e-05,2]
[348689141,1736718633558,-593.48,9.999e-05,2]
[348689143,1736718633567,-500.0,9.999e-05,2]
[348689145,1736718633576,-500.0,9.999e-05,2]
[348689147,1736718633586,-539.97,9.999e-05,2]
[348689149,1736718633595,-1075.98,9.999e-05,2]
[348689151,1736718633604,-500.0,9.999e-05,2]
[348689153,1736718633614,-3009.24,9.999e-05,2]
[348689155,1736718633623,-500.0,9.999e-05,2]
[348689157,1736718633632,-613.21,9.999e-05,2]
[348689159,1736718633641,-500.0,9.999e-05,2]
[348689161,1736718633650,-500.0,9.999e-05,2]
[348689163,1736718633660,-500.0,9.999e-05,2]
[348689165,1736718633669,-500.0,9.999e-05,2]
[348689167,1736718633678,-506.99,9.999e-05,2]
[348689169,1736718633687,-2155.98,9.999e-05,2]
[348689171,1736718633697,-500.0,9.999e-05,2]
[348689173,1736718633708,-500.0,9.999e-05,2]
[348689175,1736718633718,-500.0,9.999e-05,2]
[348689177,1736718633728,-500.0,9.999e-05,2]
[348689179,1736718633737,-615.0,9.999e-05,2]
[348689181,1736718633747,-500.0,9.999e-05,2]
[348689183,1736718633758,-682.67,9.999e-05,2]
[348689185,1736718633767,-622.97,9.999e-05,2]
[348689187,1736718633777,-1534.43,9.999e-05,2]
[348689189,1736718633786,-500.0,9.999e-05,2]
[348689191,1736718633795,-552.72,9.999e-05,2]
[348689193,1736718633805,-500.0,9.999e-05,2]
[348689195,1736718633814,-500.0,9.999e-05,2]
[348689197,1736718633824,-500.0,9.999e-05,2]
[348689199,1736718633834,-653.94,9.999e-05,2]
[348689201,1736718633843,-500.0,9.999e-05,2]
[348689202,1736718633856,-500.0,9.999e-05,2]
[348689204,1736718633865,-500.0,9.999e-05,2]
[348689206,1736718633875,-500.0,9.999e-05,2]
[348689208,1736718633885,-981.19,9.999e-05,2]
[348689210,1736718633894,-594.78,9.999e-05,2]
[348689212,1736718633903,-1830.09,9.999e-05,2]
[348689214,1736718633912,-517.41,9.999e-05,2]
[348689216,1736718633921,-500.0,9.999e-05,2]
[348689218,1736718633931,-1252.0,9.999e-05,2]
[348689220,1736718633940,-500.0,9.999e-05,2]
[348689222,1736718633949,-500.0,9.999e-05,2]
[348689224,1736718633959,-2295.68,9.999e-05,2]
[348689226,1736718633968,-500.0,9.999e-05,2]
[348689228,1736718633977,-500.0,9.999e-05,2]
[348689230,1736718633986,-517.75,9.999e-05,2]
[348689232,1736718633996,-530.16,9.999e-05,2]
[348689234,1736718634005,-641.82,9.999e-05,2]
[348689236,1736718634015,-547.89,9.999e-05,2]
[348689238,1736718634025,-500.0,9.999e-05,2]
[348689240,1736718634034,-1374.95,9.999e-05,2]
[348689242,1736718634043,-734.01,9.999e-05,2]
[348689244,1736718634053,-500.0,9.999e-05,2]
[348689246,1736718634063,-556.01,9.999e-05,2]
[348689248,1736718634072,-1414.63,9.999e-05,2]
[348689250,1736718634081,-500.0,9.999e-05,2]
[348689252,1736718634091,-951.96,9.999e-05,2]
[348689254,1736718634100,-163.50908748,9.999e-05,2]
[348689256,1736718634109,-530.5,9.999e-05,2]
[348689258,1736718634123,-500.0,9.999e-05,2]
[348689260,1736718634132,-500.0,9.999e-05,2]
[348689262,1736718634141,-563.5,9.999e-05,2]
[348689264,1736718634152,-605.92,9.999e-05,2]
[348689266,1736718634162,-500.0,9.999e-05,2]
[348689268,1736718634171,-800.04,9.999e-05,2]
[348689270,1736718634180,-650.95,9.999e-05,2]
[348689272,1736718634189,-1624.05,9.999e-05,2]
[348689274,1736718634199,-476.22249,9.999e-05,2]
[348689276,1736718634210,-500.0,9.999e-05,2]
[348689278,1736718634219,-500.0,9.999e-05,2]
[348689280,1736718634228,-500.0,9.999e-05,2]
[348689282,1736718634237,-500.0,9.999e-05,2]
[348689284,1736718634247,-500.0,9.999e-05,2]
[348689286,1736718634256,-408.670288,9.999e-05,2]
[348689288,1736718634266,-174.90753587,9.999e-05,2]
[348689290,1736718634275,-624.9,9.999e-05,2]
[348689292,1736718634284,-500.0,9.999e-05,2]
[348689294,1736718634293,-655.65,9.999e-05,2]
[348689296,1736718634303,-206.67879576,9.999e-05,2]
[348689298,1736718634312,-1923.5,9.999e-05,2]
[348689300,1736718634321,-500.0,9.999e-05,2]
[348689302,1736718634331,-500.0,9.999e-05,2]
[348689304,1736718634340,-596.96,9.999e-05,2]
[348689306,1736718634349,-500.0,9.999e-05,2]
[348689308,1736718634358,-773.9,9.999e-05,2]
[348689310,1736718634367,-500.0,9.999e-05,2]
[348689312,1736718634376,-930.45,9.999e-05,2]
[348689314,1736718634385,-151.34616858,9.999e-05,2]
[348689316,1736718634395,-163.50908748,9.999e-05,2]
[348689318,1736718634404,-163.50908748,9.999e-05,2]
[348689320,1736718634414,-163.50908748,9.999e-05,2]
[348689322,1736718634423,-163.50908748,0.0001,2]
[348689324,1736718634432,-163.50908748,0.0001,2]
[348689326,1736718634441,-163.50908748,0.0001,2]
[348689328,1736718634451,-1390101.4191617,0.0001,2]
[348689330,1736718634462,-1103230.1721901,0.0001,2]
[348689360,1736718634735,269.69,8.854e-05,2]
[348689699,1736718638009,-269.69,9.961e-05,2]
[348689701,1736718638019,-111.92712475,9.973e-05,2]
[348689705,1736718638084,-45.97601504,9.973e-05,2]
[348689706,1736718638095,-225.09686021,9.973e-05,2]
[348689707,1736718638104,-427.58838061,9.999e-05,2]
[348689708,1736718638115,-119.80161939,9.999e-05,2]
[348689710,1736718638127,-985.97837061,0.0001,2]
[348689712,1736718638139,-7363.4,0.0001,2]
[348689714,1736718638149,-10225.0,0.0001,2]
[348689717,1736718638167,-113383.39765335,0.0001,2]
[348689719,1736718638175,-200.77379883,0.0001,2]
[348689721,1736718638184,-235252.08250466,0.0001,2]
[348689723,1736718638195,-839227.77643889,0.0001,2]
[348689725,1736718638206,-723.25852889,0.0001,2]
[348689731,1736718638250,-416.3300127,0.0001,2]
[348689733,1736718638261,-14206186.59251486,0.0001,2]
[348689735,1736718638270,-7015.0882985,0.0001,2]
[348689737,1736718638279,-24216.0,0.0001,2]
[348689739,1736718638288,-166.73794238,0.0001,2]
[348689741,1736718638297,-478.78700583,0.0001,2]
[348689743,1736718638306,-3000.0,0.0001,2]
[348689745,1736718638316,-500.0,0.0001,2]
[348689747,1736718638325,-900.0,0.0001,3]
[348689749,1736718638334,-223.29,0.0001,2]
[348689751,1736718638343,-299.04579898,0.0001,2]
[348689753,1736718638353,-173.89661424,0.0001,2]
[348689755,1736718638362,-2653.96594782,0.0001,2]
[348689757,1736718638370,-163.50908748,0.0001,2]
[348689759,1736718638379,-6983.86174478,0.0001,2]
[348689761,1736718638388,-680.02438438,0.0001,2]
[348689763,1736718638398,-209.65696502,0.0001,2]
[348689765,1736718638407,-209.65696484,0.0001,2]
[348689767,1736718638416,-209.65696484,0.0001,2]
[348689769,1736718638426,-209.65696484,0.0001,2]
[348689771,1736718638435,-1364.6,0.00010072,2]
[348689773,1736718638444,-803.99,0.00010072,2]
[348689775,1736718638453,-1091.09,0.00010072,2]
[348689777,1736718638462,-911.66,0.00010072,2]
[348689779,1736718638471,-561.62,0.00010072,2]
[348689781,1736718638480,-500.0,0.00010072,2]
[348689783,1736718638489,-1216.09,0.00010072,2]
[348689785,1736718638499,-704.28,0.00010072,2]
[348689787,1736718638508,-500.0,0.00010072,2]
[348689789,1736718638518,-500.0,0.00010072,2]
[348689791,1736718638527,-540.52,0.00010072,2]
[348689793,1736718638536,-5316.73628433,0.00010073,4]
[348689795,1736718638545,-209.65696484,0.000101,2]
[348689797,1736718638555,-388.07,0.00010137,2]
[348689799,1736718638565,-666.4,0.00010214,2]
[348689801,1736718638574,-500.0,0.00010273,2]
[348689803,1736718638583,-656.56,0.00010273,2]
[348689805,1736718638593,-500.0,0.00010273,2]
[348689807,1736718638602,-500.0,0.00010273,2]
[348689809,1736718638611,-500.0,0.00010273,2]
[348689811,1736718638620,-500.0,0.00010273,2]
[348689813,1736718638629,-580.03,0.00010273,2]
[348689815,1736718638638,-500.0,0.00010273,2]
[348689817,1736718638647,-500.0,0.00010273,2]
[348689819,1736718638657,-500.0,0.00010273,2]
[348689821,1736718638666,-500.0,0.00010273,2]
[348689823,1736718638675,-500.0,0.00010273,2]
[348689825,1736718638684,-500.0,0.00010273,7]
[348689827,1736718638693,-500.0,0.00010273,2]
[348689829,1736718638702,-500.0,0.00010273,2]
[348689831,1736718638712,-500.0,0.00010273,2]
[348689833,1736718638721,-500.0,0.00010273,2]
[348689835,1736718638731,-500.0,0.00010273,2]
[348689837,1736718638741,-500.0,0.00010273,2]
[348689839,1736718638750,-500.0,0.00010273,2]
[348689841,1736718638759,-500.0,0.00010273,2]
[348689843,1736718638769,-500.0,0.00010273,2]
[348689845,1736718638778,-500.0,0.00010273,2]
[348689847,1736718638787,-500.0,0.00010273,2]
[348689849,1736718638796,-500.0,0.00010273,2]
[348689851,1736718638806,-500.0,0.00010273,2]
[348689853,1736718638815,-500.0,0.00010273,2]
[348689855,1736718638824,-512.18,0.00010273,2]
[348689857,1736718638833,-500.0,0.00010273,2]
[348689859,1736718638842,-500.0,0.00010273,2]
[348689861,1736718638852,-500.0,0.00010273,2]
[348689863,1736718638861,-502.14,0.00010273,2]
[348689865,1736718638870,-508.12,0.00010273,2]
[348689867,1736718638879,-500.0,0.00010273,2]
[348689869,1736718638888,-500.0,0.00010273,2]
[348689871,1736718638897,-554.36,0.00010273,2]
[348689873,1736718638906,-500.0,0.00010273,2]
[348689875,1736718638915,-500.0,0.00010273,2]
[348689877,1736718638924,-569.48,0.00010273,2]
[348689879,1736718638933,-500.0,0.00010273,2]
[348689881,1736718638943,-500.0,0.00010273,2]
[348689883,1736718638953,-500.0,0.00010273,2]
[348689885,1736718638962,-500.0,0.00010273,2]
[348689887,1736718638971,-500.0,0.00010273,2]
[348689889,1736718638980,-500.0,0.00010273,2]
[348689891,1736718638989,-500.0,0.00010273,2]
[348689893,1736718638999,-500.0,0.00010273,2]
[348689895,1736718639008,-520.25,0.00010273,2]
[348689897,1736718639017,-500.0,0.00010273,2]
[348689899,1736718639026,-500.0,0.00010273,2]
[348689901,1736718639035,-500.0,0.00010273,2]
[348689903,1736718639045,-555.37,0.00010273,2]
[348689904,1736718639055,-500.0,0.00010273,2]
[348689907,1736718639064,-513.36,0.00010273,2]
[348689909,1736718639073,-500.0,0.00010273,2]
[348689910,1736718639083,-583.47,0.00010273,2]
[348689912,1736718639092,-500.0,0.00010273,2]
[348689914,1736718639101,-500.0,0.00010273,2]
[348689916,1736718639111,-500.0,0.00010273,2]
[348689918,1736718639120,-500.0,0.00010273,2]
[348689921,1736718639130,-500.0,0.00010273,2]
[348689922,1736718639140,-500.0,0.00010273,2]
[348689925,1736718639150,-500.0,0.00010273,2]
[348689927,1736718639159,-390.21,0.00010273,2]
[348689928,1736718639168,-881.9,0.00010273,2]
[348689930,1736718639178,-500.0,0.00010273,2]
[348689932,1736718639187,-500.0,0.00010273,2]
[348689934,1736718639196,-500.0,0.00010273,2]
[348689936,1736718639205,-500.0,0.00010273,2]
[348689939,1736718639215,-515.33,0.00010273,2]
[348689941,1736718639225,-500.0,0.00010273,2]
[348689943,1736718639234,-500.0,0.00010273,2]
[348689945,1736718639243,-518.34,0.00010273,2]
[348689947,1736718639252,-500.0,0.00010273,2]
[348689949,1736718639262,-502.23,0.00010273,2]
[348689950,1736718639273,-500.0,0.00010273,2]
[348689952,1736718639282,-1316.21,0.00010273,2]
[348689954,1736718639291,-500.0,0.00010273,2]
[348689957,1736718639301,-500.0,0.00010273,2]
[348689959,1736718639310,-593.48,0.00010273,2]
[348689961,1736718639318,-500.0,0.00010273,2]
[348689962,1736718639328,-500.0,0.00010273,2]
[348689965,1736718639337,-539.97,0.00010273,2]
[348689967,1736718639348,-1075.98,0.00010273,2]
[348689969,1736718639357,-500.0,0.00010273,2]
[348689971,1736718639366,-3009.24,0.00010273,2]
[348689973,1736718639380,-500.0,0.00010273,2]
[348689975,1736718639389,-613.21,0.00010273,2]
[348689977,1736718639399,-500.0,0.00010273,2]
[348689979,1736718639409,-500.0,0.00010273,2]
[348689981,1736718639419,-500.0,0.00010273,2]
[348689983,1736718639428,-500.0,0.00010273,2]
[348689985,1736718639438,-506.99,0.00010273,2]
[348689987,1736718639448,-2155.98,0.00010273,2]
[348689989,1736718639456,-500.0,0.00010273,2]
[348689991,1736718639466,-500.0,0.00010273,2]
[348689993,1736718639475,-500.0,0.00010273,2]
[348689995,1736718639484,-500.0,0.00010273,2]
[348689997,1736718639493,-615.0,0.00010273,2]
[348689999,1736718639503,-500.0,0.00010273,2]
[348690001,1736718639512,-682.67,0.00010273,2]
[348690003,1736718639521,-622.97,0.00010273,2]
[348690005,1736718639531,-1534.43,0.00010273,2]
[348690007,1736718639540,-500.0,0.00010273,2]
[348690009,1736718639550,-552.72,0.00010273,2]
[348690011,1736718639559,-500.0,0.00010273,2]
[348690013,1736718639568,-500.0,0.00010273,2]
[348690015,1736718639578,-653.94,0.00010273,2]
[348690017,1736718639588,-500.0,0.00010273,2]
[348690019,1736718639598,-500.0,0.00010273,2]
[348690021,1736718639607,-500.0,0.00010273,2]
[348690023,1736718639617,-981.19,0.00010273,2]
[348690026,1736718639626,-594.78,0.00010273,2]
[348690027,1736718639636,-1830.09,0.00010273,2]
[348690030,1736718639646,-517.41,0.00010273,2]
[348690031,1736718639656,-500.0,0.00010273,2]
[348690033,1736718639665,-1252.0,0.00010273,2]
[348690036,1736718639675,-500.0,0.00010273,2]
[348690038,1736718639683,-2295.68,0.00010273,2]
[348690039,1736718639693,-500.0,0.00010273,2]
[348690042,1736718639703,-517.75,0.00010273,2]
[348690044,1736718639715,-530.16,0.00010273,2]
[348690045,1736718639724,-641.82,0.00010273,2]
[348690048,1736718639734,-547.89,0.00010273,2]
[348690050,1736718639744,-1374.95,0.00010273,2]
[348690052,1736718639753,-734.01,0.00010273,2]
[348690054,1736718639763,-500.0,0.00010273,2]
[348690056,1736718639772,-556.01,0.00010273,2]
[348690058,1736718639781,-1414.63,0.00010273,2]
[348690060,1736718639791,-500.0,0.00010273,2]
[348690062,1736718639800,-951.96,0.00010273,2]
[348690064,1736718639809,-530.5,0.00010273,2]
[348690066,1736718639819,-500.0,0.00010273,2]
[348690067,1736718639828,-500.0,0.00010273,2]
[348690070,1736718639838,-563.5,0.00010273,2]
[348690072,1736718639848,-605.92,0.00010273,2]
[348690074,1736718639858,-500.0,0.00010273,2]
[348690075,1736718639867,-800.04,0.00010273,2]
[348690077,1736718639876,-650.95,0.00010273,2]
[348690080,1736718639887,-1624.05,0.00010273,2]
[348690082,1736718639898,-476.22249,0.00010273,2]
[348690084,1736718639910,-500.0,0.00010273,2]
[348690086,1736718639919,-500.0,0.00010273,2]
[348690088,1736718639930,-500.0,0.00010273,2]
[348690090,1736718639939,-500.0,0.00010273,2]
[348690092,1736718639948,-408.670288,0.00010273,2]
[348690094,1736718639957,-624.9,0.00010273,2]
[348690096,1736718639967,-655.65,0.00010273,2]
[348690098,1736718639976,-1923.5,0.00010273,2]
[348690100,1736718639985,-500.0,0.00010273,2]
[348690102,1736718639995,-500.0,0.00010273,2]
[348690104,1736718640004,-596.96,0.00010273,2]
[348690106,1736718640013,-500.0,0.00010273,2]
[348690108,1736718640023,-773.9,0.00010273,2]
[348690110,1736718640032,-500.0,0.00010273,2]
[348690111,1736718640041,-930.45,0.00010273,2]
[348690112,1736718640050,-420.0,0.0001028,2]
[348690113,1736718640060,-200.77379883,0.00010283,2]
[348690114,1736718640069,-209.65696484,0.000103,2]
[348690115,1736718640078,-777.24,0.00010345,2]
[348690116,1736718640088,-787.0,0.00010345,2]
[348690117,1736718640097,-787.62,0.00010345,2]
[348690118,1736718640107,-562.43,0.00010345,2]
[348690119,1736718640117,-860.5,0.00010345,2]
[348690120,1736718640128,-734.53,0.00010345,2]
[348690121,1736718640138,-733.56,0.00010345,2]
[348690122,1736718640147,-733.56,0.00010345,2]
[348690123,1736718640157,-1045.45,0.00010345,2]
[348690124,1736718640166,-1076.8,0.00010345,2]
[348690125,1736718640175,-1011.13,0.00010345,2]
[348690126,1736718640185,-1475.42,0.00010345,2]
[348690127,1736718640194,-1364.6,0.00010346,2]
[348690128,1736718640203,-803.99,0.00010346,2]
[348690129,1736718640213,-1091.09,0.00010346,2]
[348690130,1736718640225,-911.66,0.00010346,2]
[348690131,1736718640234,-561.62,0.00010346,2]
[348690132,1736718640243,-500.0,0.00010346,2]
[348690133,1736718640253,-1216.09,0.00010346,2]
[348690134,1736718640262,-704.28,0.00010346,2]
[348690135,1736718640272,-500.0,0.00010346,2]
[348690136,1736718640282,-500.0,0.00010346,2]
[348690137,1736718640292,-540.52,0.00010346,2]
[348690138,1736718640301,-393.5828982,0.00010354,2]
[348690139,1736718640311,-291.64920048,0.000104,2]
[348690140,1736718640320,-299.04579897,0.000104,2]
[348690141,1736718640330,-173.89661422,0.000104,2]
[348690142,1736718640339,-6983.86174477,0.000104,2]
[348690143,1736718640348,-680.02438437,0.000104,2]
[348690144,1736718640359,-756.53,0.00010423,2]
[348690145,1736718640368,-255.0,0.00010449,2]
[348690146,1736718640377,-1678.52728862,0.00010454,2]
[348690147,1736718640387,-393.58289821,0.00010462,2]
[348690148,1736718640396,-209.65696484,0.000105,2]
[348690149,1736718640406,-500.0,0.00010518,2]
[348690150,1736718640417,-500.0,0.00010518,2]
[348690151,1736718640427,-2050.95,0.00010518,2]
[348690152,1736718640436,-641.29,0.00010518,2]
[348690153,1736718640446,-500.0,0.00010518,2]
[348690154,1736718640456,-800.14,0.00010518,2]
[348690155,1736718640467,-816.64,0.00010518,2]
[348690156,1736718640476,-1160.04,0.00010518,2]
[348690157,1736718640486,-817.54,0.00010518,2]
[348690159,1736718640497,-1385.85,0.00010518,2]
[348690161,1736718640506,-960.89,0.00010518,2]
[348690162,1736718640515,-2295.2,0.00010518,2]
[348690164,1736718640525,-500.0,0.00010518,2]
[348690165,1736718640535,-960.5,0.00010518,2]
[348690166,1736718640544,-1918.66,0.00010518,2]
[348690167,1736718640554,-250.38758051,0.00010518,2]
[348690168,1736718640563,-976.04,0.00010518,2]
[348690169,1736718640572,-923.64,0.00010518,2]
[348690170,1736718640582,-582.83,0.00010518,2]
[348690171,1736718640591,-1542.48,0.00010518,2]
[348690172,1736718640600,-967.5,0.00010518,2]
[348690173,1736718640609,-1248.4,0.00010518,2]
[348690174,1736718640619,-1117.98,0.00010518,2]
[348690175,1736718640630,-2432.43,0.00010518,2]
[348690176,1736718640641,-149644.70988588,0.00010519,2]
[348690177,1736718640650,-2311.91,0.00010519,2]
[348690178,1736718640660,-1591.89,0.00010519,2]
[348690179,1736718640669,-883.92,0.00010519,2]
[348690180,1736718640679,-904.75,0.00010519,2]
[348690181,1736718640688,-500.0,0.00010519,2]
[348690182,1736718640698,-685.38,0.00010519,2]
[348690183,1736718640707,-1044.84,0.00010519,2]
[348690184,1736718640717,-1544.43,0.00010519,2]
[348690186,1736718640726,-500.0,0.00010547,2]
[348690188,1736718640735,-656.56,0.00010547,2]
[348690190,1736718640744,-500.0,0.00010547,2]
[348690191,1736718640754,-500.0,0.00010547,2]
[348690192,1736718640763,-616.10977331,0.00010547,2]
[348690193,1736718640772,-500.0,0.00010547,2]
[348690195,1736718640782,-580.03,0.00010547,2]
[348690196,1736718640791,-500.0,0.00010547,2]
[348690197,1736718640801,-500.0,0.00010547,2]
[348690198,1736718640810,-500.0,0.00010547,2]
[348690199,1736718640819,-500.0,0.00010547,2]
[348690200,1736718640828,-500.0,0.00010547,2]
[348690202,1736718640837,-500.0,0.00010547,2]
[348690203,1736718640846,-500.0,0.00010547,2]
[348690205,1736718640855,-500.0,0.00010547,2]
[348690206,1736718640864,-500.0,0.00010547,2]
[348690207,1736718640873,-500.0,0.00010547,2]
[348690208,1736718640882,-500.0,0.00010547,2]
[348690209,1736718640891,-500.0,0.00010547,2]
[348690210,1736718640901,-500.0,0.00010547,2]
[348690211,1736718640910,-500.0,0.00010547,2]
[348690212,1736718640919,-500.0,0.00010547,2]
[348690213,1736718640929,-500.0,0.00010547,2]
[348690214,1736718640938,-500.0,0.00010547,2]
[348690215,1736718640947,-500.0,0.00010547,2]
[348690216,1736718640956,-500.0,0.00010547,2]
[348690217,1736718640967,-512.18,0.00010547,2]
[348690218,1736718640976,-482.41154526,0.00010547,2]
[348690219,1736718640985,-500.0,0.00010547,2]
[348690220,1736718640994,-500.0,0.00010547,2]
[348690221,1736718641003,-502.14,0.00010547,2]
[348690222,1736718641012,-508.12,0.00010547,2]
[348690223,1736718641021,-500.0,0.00010547,2]
[348690224,1736718641030,-500.0,0.00010547,2]
[348690225,1736718641039,-554.36,0.00010547,2]
[348690226,1736718641048,-500.0,0.00010547,2]
[348690227,1736718641057,-500.0,0.00010547,2]
[348690228,1736718641066,-569.48,0.00010547,2]
[348690229,1736718641075,-500.0,0.00010547,2]
[348690230,1736718641084,-500.0,0.00010547,2]
[348690231,1736718641093,-500.0,0.00010547,2]
[348690232,1736718641102,-500.0,0.00010547,2]